{"text_format":"3","workbook":"xlsx","n_sheets":3,"sheets":["Start","Geschenkbudget und Tracker","Daten"],"not_rendered":{"charts":1,"defined_names":1},"read":"whole","date_system":"1900"}

{"sheet":"Start","index":0,"n_rows":7,"n_cols":2,"rows_kept":7}
[null,"Über diese Vorlage"]
[null,"Verwenden Sie diese Vorlage, um Ihre Geschenkkäufe zu protokollieren und gegen das Budget nachzuverfolgen."]
[null,"Geben Sie in der Tabelle die Namen der Familie und Freunde, Geschenkartikel, budgetierte und ausgegebene Beträge sowie Notizen ein, und wählen Sie den Anlass und den Monat des Ereignisses aus."]
[null,"Das monatliche Übersichtsdiagramm wird automatisch aktualisiert."]
[null,"Notiz: "]
[null,"Zusätzliche Anweisungen wurden in Spalte A im Arbeitsblatt \"GESCHENKBUDGET UND TRACKER\" bereitgestellt. Dieser Text wurde absichtlich ausgeblendet. Um die Texte zu entfernen, wählen Sie Spalte A und dann ENTF aus. Um die Texte einzublenden, wählen Sie Spalte A aus, und ändern Sie die Schriftfarbe."]
[null,"Um mehr über Tabellen zu erfahren, drücken Sie die UMSCHALTTASTE und dann F10 innerhalb einer Tabelle, und wählen Sie die Option TABELLE und dann ALTERNATIVER TEXT aus."]

{"sheet":"Geschenkbudget und Tracker","index":1,"n_rows":10,"n_cols":13,"rows_kept":10,"merged":[[0,1,0,4],[0,5,0,12],[1,1,1,2],[2,1,2,12],[3,1,3,3]]}
["Erstellen Sie in diesem Arbeitsblatt ein persönliches Geschenkbudget und eine Nachverfolgung. Der Titel des Arbeitsblatts befindet sich in der Zelle rechts und ein Tipp in der Zelle F1. Hilfreiche Anweisungen zum Verwenden dieses Arbeitsblatts befinden sich in Zellen in dieser Spalte.","Geschenkbudget und Tracker",{"$nulls":3},"Füllen Sie zu Beginn jedes neuen Jahres so viele Dinge ein, wie Sie können. Geben Sie Namen von Familie und Freunden ein, wählen Sie eine Geschenkanlass aus, wählen Sie den Ereignismonat aus, und geben Sie ein, wie viel Sie ausgeben möchten. Jede Person kann für jeden unterschiedlichen Anlass (Geburtstag, Feiertag, Feier usw.) mehrmals in der Tabelle angezeigt werden."]
["Die Bezeichnung „Monatliche Übersicht“ befindet sich in der Zelle rechts und der Tipp in der Zelle D2.","Monatliche Übersicht",null,"Verwenden Sie das Diagramm, um die kommenden Monate anzuzeigen, um vorauszuplanen. Protokollieren Sie Ihre Käufe, um sie gegen Ihr Budgets nachzuverfolgen."]
["Das Säulendiagramm für budgetierte Beträge mit einer Zeilendiagrammüberlagerung für ausgegebene Beträge befindet sich in der Zelle rechts.","Das Säulendiagramm für budgetierte Beträge mit einer Zeilendiagrammüberlagerung für ausgegebene Beträge befindet sich in dieser Zelle."]
["Die Bezeichnung „Geschenkbudget und Nachverfolgung“ befindet sich in der Zelle rechts.","Geschenkbudget und Tracker"]
["Geben Sie Details in die Tabelle „Budgetnachverfolgung“ ein, beginnend in der Zelle rechts.","Wer","Anlass","Monat","Betrag\nbudgetiert","Betrag\nausgegeben","Geschenk","Link zum Geschenk","Im Geschäft/\nOnline","Gekauft?","Verpackt?","Geliefert?","Notizen"]
[null,"Name 1","Geburtstage","Juni",{"v":50,"d":"50 €"},{"v":30,"d":"30 €"},"Schuhe","Verkäufer","Online","Ja","Nein","Nein","16.06., Kinotickets"]
[null,"Name 2","Jahrestage","April",{"v":20,"d":"20 €"},{"v":20,"d":"20 €"},"Eine Katze","Verkäufer","Im Geschäft","Nein","Nein","Nein","Er hat erwähnt, dass er Hunde mag."]
[null,"Name 3","Feiertage","Juli",{"v":50,"d":"50 €"},{"v":70,"d":"70 €"},"Kopfhörer","Verkäufer","Online","Nein","Nein","Nein","Studentenwohnungsdinge"]
[null,"Name 4","Geburtstage","Januar",{"v":20,"d":"20 €"},{"v":30,"d":"30 €"},"Spiel","Verkäufer","Im Geschäft","Ja","Ja","Ja"]
[null,"Name 5","Hochzeiten","Juni",{"v":100,"d":"100 €"},{"v":150,"d":"150 €"},"Kristallvase","Verkäufer","Im Geschäft","Ja","Ja","Nein"]

{"sheet":"Daten","index":2,"n_rows":13,"n_cols":8,"rows_kept":13,"hidden":true}
["Anlässe",null,"Datum","Datum","Budgetierter Betrag\nGeburtstage","Budgetierter Betrag\nFeiertage","Budgetierter Betrag\nSonstiges","Ausgegebener Betrag"]
["Geburtstage",null,"Januar","Jan",{"$f":"SUMIFS(BudgetTracker[Betrag\nbudgetiert],BudgetTracker[Monat],\"Januar\",BudgetTracker[Anlass],\"Geburtstage\")","v":{"v":20,"d":"20 €"}},{"$f":"SUMIFS(BudgetTracker[Betrag\nbudgetiert],BudgetTracker[Monat],\"Januar\",BudgetTracker[Anlass],\"Feiertage\")","v":{"v":0,"d":"0 €"}},{"$f":"SUMIFS(BudgetTracker[Betrag\nbudgetiert],BudgetTracker[Monat],\"Januar\",BudgetTracker[Anlass],\"<>Feiertage\",BudgetTracker[Anlass],\"<>Geburtstage\")","v":{"v":0,"d":"0 €"}},{"$f":"SUMIFS(BudgetTracker[Betrag\nausgegeben],BudgetTracker[Monat],\"Januar\")","v":{"v":30,"d":"30 €"}}]
["Feiertage",null,"Februar","Feb",{"$f":"SUMIFS(BudgetTracker[Betrag\nbudgetiert],BudgetTracker[Monat],\"Februar\",BudgetTracker[Anlass],\"Geburtstage\")","v":{"v":0,"d":"0 €"}},{"$f":"SUMIFS(BudgetTracker[Betrag\nbudgetiert],BudgetTracker[Monat],\"Februar\",BudgetTracker[Anlass],\"Feiertage\")","v":{"v":0,"d":"0 €"}},{"$f":"SUMIFS(BudgetTracker[Betrag\nbudgetiert],BudgetTracker[Monat],\"Februar\",BudgetTracker[Anlass],\"<>Feiertage\",BudgetTracker[Anlass],\"<>Geburtstage\")","v":{"v":0,"d":"0 €"}},{"$f":"SUMIFS(BudgetTracker[Betrag\nausgegeben],BudgetTracker[Monat],\"Februar\")","v":{"v":0,"d":"0 €"}}]
["Jahrestage",null,"März","Mrz",{"$f":"SUMIFS(BudgetTracker[Betrag\nbudgetiert],BudgetTracker[Monat],\"März\",BudgetTracker[Anlass],\"Geburtstage\")","v":{"v":0,"d":"0 €"}},{"$f":"SUMIFS(BudgetTracker[Betrag\nbudgetiert],BudgetTracker[Monat],\"März\",BudgetTracker[Anlass],\"Feiertage\")","v":{"v":0,"d":"0 €"}},{"$f":"SUMIFS(BudgetTracker[Betrag\nbudgetiert],BudgetTracker[Monat],\"März\",BudgetTracker[Anlass],\"<>Feiertage\",BudgetTracker[Anlass],\"<>Geburtstage\")","v":{"v":0,"d":"0 €"}},{"$f":"SUMIFS(BudgetTracker[Betrag\nausgegeben],BudgetTracker[Monat],\"März\")","v":{"v":0,"d":"0 €"}}]
["Hochzeiten",null,"April","Apr",{"$f":"SUMIFS(BudgetTracker[Betrag\nbudgetiert],BudgetTracker[Monat],\"April\",BudgetTracker[Anlass],\"Geburtstage\")","v":{"v":0,"d":"0 €"}},{"$f":"SUMIFS(BudgetTracker[Betrag\nbudgetiert],BudgetTracker[Monat],\"April\",BudgetTracker[Anlass],\"Feiertage\")","v":{"v":0,"d":"0 €"}},{"$f":"SUMIFS(BudgetTracker[Betrag\nbudgetiert],BudgetTracker[Monat],\"April\",BudgetTracker[Anlass],\"<>Feiertage\",BudgetTracker[Anlass],\"<>Geburtstage\")","v":{"v":20,"d":"20 €"}},{"$f":"SUMIFS(BudgetTracker[Betrag\nausgegeben],BudgetTracker[Monat],\"April\")","v":{"v":20,"d":"20 €"}}]
["Brautduschen",null,"Mai","Mai",{"$f":"SUMIFS(BudgetTracker[Betrag\nbudgetiert],BudgetTracker[Monat],\"Mai\",BudgetTracker[Anlass],\"Geburtstage\")","v":{"v":0,"d":"0 €"}},{"$f":"SUMIFS(BudgetTracker[Betrag\nbudgetiert],BudgetTracker[Monat],\"Mai\",BudgetTracker[Anlass],\"Feiertage\")","v":{"v":0,"d":"0 €"}},{"$f":"SUMIFS(BudgetTracker[Betrag\nbudgetiert],BudgetTracker[Monat],\"Mai\",BudgetTracker[Anlass],\"<>Feiertage\",BudgetTracker[Anlass],\"<>Geburtstage\")","v":{"v":0,"d":"0 €"}},{"$f":"SUMIFS(BudgetTracker[Betrag\nausgegeben],BudgetTracker[Monat],\"Mai\")","v":{"v":0,"d":"0 €"}}]
["Babyduschen",null,"Juni","Jun",{"$f":"SUMIFS(BudgetTracker[Betrag\nbudgetiert],BudgetTracker[Monat],\"Juni\",BudgetTracker[Anlass],\"Geburtstage\")","v":{"v":50,"d":"50 €"}},{"$f":"SUMIFS(BudgetTracker[Betrag\nbudgetiert],BudgetTracker[Monat],\"Juni\",BudgetTracker[Anlass],\"Feiertage\")","v":{"v":0,"d":"0 €"}},{"$f":"SUMIFS(BudgetTracker[Betrag\nbudgetiert],BudgetTracker[Monat],\"Juni\",BudgetTracker[Anlass],\"<>Feiertage\",BudgetTracker[Anlass],\"<>Geburtstage\")","v":{"v":100,"d":"100 €"}},{"$f":"SUMIFS(BudgetTracker[Betrag\nausgegeben],BudgetTracker[Monat],\"Juni\")","v":{"v":180,"d":"180 €"}}]
["Abschlussfeiern",null,"Juli","Jul",{"$f":"SUMIFS(BudgetTracker[Betrag\nbudgetiert],BudgetTracker[Monat],\"Juli\",BudgetTracker[Anlass],\"Geburtstage\")","v":{"v":0,"d":"0 €"}},{"$f":"SUMIFS(BudgetTracker[Betrag\nbudgetiert],BudgetTracker[Monat],\"Juli\",BudgetTracker[Anlass],\"Feiertage\")","v":{"v":50,"d":"50 €"}},{"$f":"SUMIFS(BudgetTracker[Betrag\nbudgetiert],BudgetTracker[Monat],\"Juli\",BudgetTracker[Anlass],\"<>Feiertage\",BudgetTracker[Anlass],\"<>Geburtstage\")","v":{"v":0,"d":"0 €"}},{"$f":"SUMIFS(BudgetTracker[Betrag\nausgegeben],BudgetTracker[Monat],\"Juli\")","v":{"v":70,"d":"70 €"}}]
["Sonstiges",null,"August","Aug",{"$f":"SUMIFS(BudgetTracker[Betrag\nbudgetiert],BudgetTracker[Monat],\"August\",BudgetTracker[Anlass],\"Geburtstage\")","v":{"v":0,"d":"0 €"}},{"$f":"SUMIFS(BudgetTracker[Betrag\nbudgetiert],BudgetTracker[Monat],\"August\",BudgetTracker[Anlass],\"Feiertage\")","v":{"v":0,"d":"0 €"}},{"$f":"SUMIFS(BudgetTracker[Betrag\nbudgetiert],BudgetTracker[Monat],\"August\",BudgetTracker[Anlass],\"<>Feiertage\",BudgetTracker[Anlass],\"<>Geburtstage\")","v":{"v":0,"d":"0 €"}},{"$f":"SUMIFS(BudgetTracker[Betrag\nausgegeben],BudgetTracker[Monat],\"August\")","v":{"v":0,"d":"0 €"}}]
[null,null,"September","Sep",{"$f":"SUMIFS(BudgetTracker[Betrag\nbudgetiert],BudgetTracker[Monat],\"September\",BudgetTracker[Anlass],\"Geburtstage\")","v":{"v":0,"d":"0 €"}},{"$f":"SUMIFS(BudgetTracker[Betrag\nbudgetiert],BudgetTracker[Monat],\"September\",BudgetTracker[Anlass],\"Feiertage\")","v":{"v":0,"d":"0 €"}},{"$f":"SUMIFS(BudgetTracker[Betrag\nbudgetiert],BudgetTracker[Monat],\"September\",BudgetTracker[Anlass],\"<>Feiertage\",BudgetTracker[Anlass],\"<>Geburtstage\")","v":{"v":0,"d":"0 €"}},{"$f":"SUMIFS(BudgetTracker[Betrag\nausgegeben],BudgetTracker[Monat],\"September\")","v":{"v":0,"d":"0 €"}}]
[null,null,"Oktober","Okt",{"$f":"SUMIFS(BudgetTracker[Betrag\nbudgetiert],BudgetTracker[Monat],\"Oktober\",BudgetTracker[Anlass],\"Geburtstage\")","v":{"v":0,"d":"0 €"}},{"$f":"SUMIFS(BudgetTracker[Betrag\nbudgetiert],BudgetTracker[Monat],\"Oktober\",BudgetTracker[Anlass],\"Feiertage\")","v":{"v":0,"d":"0 €"}},{"$f":"SUMIFS(BudgetTracker[Betrag\nbudgetiert],BudgetTracker[Monat],\"Oktober\",BudgetTracker[Anlass],\"<>Feiertage\",BudgetTracker[Anlass],\"<>Geburtstage\")","v":{"v":0,"d":"0 €"}},{"$f":"SUMIFS(BudgetTracker[Betrag\nausgegeben],BudgetTracker[Monat],\"Oktober\")","v":{"v":0,"d":"0 €"}}]
[null,null,"November","Nov",{"$f":"SUMIFS(BudgetTracker[Betrag\nbudgetiert],BudgetTracker[Monat],\"November\",BudgetTracker[Anlass],\"Geburtstage\")","v":{"v":0,"d":"0 €"}},{"$f":"SUMIFS(BudgetTracker[Betrag\nbudgetiert],BudgetTracker[Monat],\"November\",BudgetTracker[Anlass],\"Feiertage\")","v":{"v":0,"d":"0 €"}},{"$f":"SUMIFS(BudgetTracker[Betrag\nbudgetiert],BudgetTracker[Monat],\"November\",BudgetTracker[Anlass],\"<>Feiertage\",BudgetTracker[Anlass],\"<>Geburtstage\")","v":{"v":0,"d":"0 €"}},{"$f":"SUMIFS(BudgetTracker[Betrag\nausgegeben],BudgetTracker[Monat],\"November\")","v":{"v":0,"d":"0 €"}}]
[null,null,"Dezember","Dez",{"$f":"SUMIFS(BudgetTracker[Betrag\nbudgetiert],BudgetTracker[Monat],\"Dezember\",BudgetTracker[Anlass],\"Geburtstage\")","v":{"v":0,"d":"0 €"}},{"$f":"SUMIFS(BudgetTracker[Betrag\nbudgetiert],BudgetTracker[Monat],\"Dezember\",BudgetTracker[Anlass],\"Feiertage\")","v":{"v":0,"d":"0 €"}},{"$f":"SUMIFS(BudgetTracker[Betrag\nbudgetiert],BudgetTracker[Monat],\"Dezember\",BudgetTracker[Anlass],\"<>Feiertage\",BudgetTracker[Anlass],\"<>Geburtstage\")","v":{"v":0,"d":"0 €"}},{"$f":"SUMIFS(BudgetTracker[Betrag\nausgegeben],BudgetTracker[Monat],\"Dezember\")","v":{"v":0,"d":"0 €"}}]